fUST/lending_fUST_20240910
["ID","MTS","AMOUNT","RATE_DAILY","PERIOD"]
[337679183,1725946239716,-346.76586308,0.00019675,2]
[337679184,1725946239726,-555.46558272,0.00019675,2]
[337679185,1725946239737,-500.0,0.00019675,2]
[337679186,1725946239749,-500.0,0.00019675,2]
[337679187,1725946239759,-500.0,0.00019675,2]
[337679188,1725946239770,-500.0,0.00019675,2]
[337679189,1725946239781,-500.0,0.00019675,2]
[337679190,1725946239791,-500.0,0.00019675,2]
[337679191,1725946239801,-500.0,0.00019675,2]
[337679192,1725946239812,-500.0,0.00019675,2]
[337679193,1725946239822,-500.0,0.00019675,2]
[337679194,1725946239833,-500.0,0.00019675,2]
[337679195,1725946239844,-500.0,0.00019675,2]
[337679196,1725946239854,-500.0,0.00019675,2]
[337679197,1725946239864,-500.0,0.00019675,2]
[337679198,1725946239875,-500.0,0.00019675,2]
[337679199,1725946239885,-500.0,0.00019675,2]
[337679200,1725946239895,-500.0,0.00019675,2]
[337679201,1725946239905,-500.0,0.00019675,2]
[337679202,1725946239915,-500.0,0.00019675,2]
[337679203,1725946239925,-500.0,0.00019675,2]
[337679204,1725946239935,-500.0,0.00019675,2]
[337679205,1725946239945,-500.0,0.00019675,2]
[337679206,1725946239954,-500.0,0.00019675,2]
[337679207,1725946239964,-500.0,0.00019675,2]
[337679208,1725946239974,-500.0,0.00019675,2]
[337679209,1725946239984,-500.0,0.00019675,2]
[337679210,1725946239994,-500.0,0.00019675,2]
[337679211,1725946240004,-500.0,0.00019675,2]
[337679212,1725946240015,-500.0,0.00019675,2]
[337679213,1725946240025,-500.0,0.00019675,2]
[337679214,1725946240035,-500.0,0.00019675,2]
[337679215,1725946240045,-500.0,0.00019675,2]
[337679216,1725946240055,-500.0,0.00019675,2]
[337679217,1725946240065,-500.0,0.00019675,2]
[337679218,1725946240075,-500.0,0.00019675,2]
[337679219,1725946240085,-500.0,0.00019675,2]
[337679220,1725946240094,-500.0,0.00019675,2]
[337679221,1725946240103,-500.0,0.00019675,2]
[337679222,1725946240113,-500.0,0.00019675,2]
[337679223,1725946240123,-500.0,0.00019675,2]
[337679224,1725946240133,-524.01974688,0.00019676,2]
[337679225,1725946240145,-500.0,0.00019676,2]
[337679226,1725946240157,-500.0,0.00019676,2]
[337679227,1725946240167,-500.0,0.00019676,2]
[337679228,1725946240177,-494.28987175,0.00019676,2]
[337679229,1725946240187,-491.18683162,0.00019676,2]
[337679230,1725946240196,-500.0,0.00019676,2]
[337679231,1725946240206,-500.0,0.00019676,2]
[337679232,1725946240216,-500.0,0.00019676,2]
[337679233,1725946240226,-500.0,0.00019676,2]
[337679234,1725946240237,-500.0,0.00019676,2]
[337679235,1725946240246,-500.0,0.00019676,2]
[337679236,1725946240256,-500.0,0.00019676,2]
[337679237,1725946240265,-500.0,0.00019676,2]
[337679238,1725946240276,-500.0,0.00019676,2]
[337679239,1725946240285,-500.0,0.00019676,2]
[337679240,1725946240295,-500.0,0.00019676,2]
[337679241,1725946240305,-196.00291022,0.00019676,2]
[337679242,1725946240315,-500.0,0.00019676,2]
[337679243,1725946240325,-500.0,0.00019676,2]
[337679244,1725946240335,-500.0,0.00019676,2]
[337679245,1725946240346,-500.0,0.00019676,2]
[337679246,1725946240356,-435816.482481,0.00019677,3]
[337679250,1725946240618,-342498.664832,0.00019677,3]
[337679251,1725946240631,-480.55486,0.00019677,2]
[337679252,1725946240641,-480.55486,0.00019677,2]
[337679254,1725946240652,-156.347715,0.00019677,2]
[337679256,1725946240663,-151.0,0.00019677,2]
[337679257,1725946240673,-151.0,0.00019677,2]
[337679258,1725946240683,-151.0,0.00019677,2]
[337679259,1725946240692,-151.0,0.00019677,2]
[337679260,1725946240702,-151.0,0.00019677,2]
[337679261,1725946240712,-250.0,0.00019677,2]
[337679262,1725946240722,-85624.6662081,0.00019679,3]
[337679263,1725946240732,-300.136804,0.00019691,2]
[337679264,1725946240742,-151.0,0.00019691,2]
[337679265,1725946240753,-151.0,0.00019691,2]
[337679266,1725946240763,-151.0,0.00019691,2]
[337679267,1725946240773,-203.180249,0.00019691,2]
[337679268,1725946240783,-203.180249,0.00019691,2]
[337679269,1725946240792,-151.0,0.00019691,2]
[337679270,1725946240803,-944.846674,0.00019691,2]
[337679271,1725946240813,-295.458454,0.00019691,2]
[337679272,1725946240822,-944.846674,0.00019691,2]
[337679273,1725946240832,-402.467486,0.00019691,2]
[337679274,1725946240842,-295.458454,0.00019691,2]
[337679275,1725946240852,-1283.208257,0.00019691,2]
[337679276,1725946240861,-402.467486,0.00019691,2]
[337679277,1725946240871,-1283.208257,0.00019691,2]
[337679278,1725946240881,-152.820907,0.00019691,2]
[337679279,1725946240891,-151.0,0.00019691,2]
[337679280,1725946240901,-151.0,0.00019691,2]
[337679281,1725946240912,-151.0,0.00019691,2]
[337679282,1725946240923,-153.219926,0.00019691,2]
[337679283,1725946240932,-193.833771,0.00019691,2]
[337679284,1725946240942,-151.0,0.00019691,2]
[337679285,1725946240952,-193.833771,0.00019691,2]
[337679286,1725946240962,-203.536516,0.00019691,2]
[337679287,1725946240972,-151.335997,0.00019691,2]
[337679288,1725946240982,-151.0,0.00019691,2]
[337679289,1725946240992,-151.0,0.00019691,2]
[337679290,1725946241002,-480.55486,0.00019691,2]
[337679291,1725946241012,-480.55486,0.00019691,2]
[337679292,1725946241022,-151.0,0.00019691,2]
[337679293,1725946241031,-151.0,0.00019691,2]
[337679294,1725946241040,-151.0,0.00019691,2]
[337679295,1725946241050,-151.0,0.00019691,2]
[337679296,1725946241060,-151.0,0.00019691,2]
[337679297,1725946241071,-151.0,0.00019699,2]
[337679298,1725946241080,-151.0,0.00019699,2]
[337679299,1725946241090,-293.351434,0.00019699,2]
[337679300,1725946241100,-226.976582,0.00019699,2]
[337679301,1725946241110,-226.976582,0.00019699,2]
[337679302,1725946241122,-425.048534,0.00019699,2]
[337679303,1725946241133,-425.048534,0.00019699,2]
[337679304,1725946241144,-506.250236,0.00019699,2]
[337679305,1725946241154,-506.250236,0.00019699,2]
[337679306,1725946241166,-151.0,0.00019699,2]
[337679307,1725946241177,-150.112233,0.000197,2]
[337679308,1725946241188,-150.112233,0.000197,2]
[337679309,1725946241197,-150.112233,0.000197,2]
[337679310,1725946241208,-150.112233,0.000197,2]
[337679311,1725946241217,-150.112233,0.000197,2]
[337679312,1725946241227,-150.112233,0.000197,2]
[337679313,1725946241238,-150.112233,0.000197,2]
[337679314,1725946241248,-150.112233,0.000197,2]
[337679315,1725946241259,-150.112233,0.000197,2]
[337679316,1725946241269,-150.112233,0.000197,2]
[337679317,1725946241278,-150.112233,0.000197,2]
[337679318,1725946241288,-150.112233,0.000197,2]
[337679319,1725946241298,-150.112233,0.000197,2]
[337679320,1725946241307,-150.112233,0.000197,2]
[337679321,1725946241316,-16947.86927519,0.00019701,2]
[337679322,1725946241327,-78278.40048398,0.00019701,2]
[337679323,1725946241336,-153.4664,0.00019701,2]
[337679324,1725946241347,-151.0,0.00019701,2]
[337679325,1725946241357,-226.976582,0.00019701,2]
[337679326,1725946241366,-226.976582,0.00019701,2]
[337679327,1725946241376,-425.048534,0.00019701,2]
[337679328,1725946241385,-425.048534,0.00019701,2]
[337679329,1725946241395,-506.250236,0.00019701,2]
[337679330,1725946241404,-506.250236,0.00019701,2]
[337679331,1725946241415,-153.484038,0.00019701,2]
[337679332,1725946241424,-151.0,0.00019701,2]
[337679333,1725946241433,-151.0,0.00019701,2]
[337679334,1725946241444,-151.0,0.00019701,2]
[337679335,1725946241456,-203.180249,0.00019701,2]
[337679336,1725946241466,-203.180249,0.00019701,2]
[337679337,1725946241475,-151.0,0.00019701,2]
[337679338,1725946241486,-944.846674,0.00019701,2]
[337679339,1725946241496,-295.458454,0.00019701,2]
[337679340,1725946241505,-944.846674,0.00019701,2]
[337679341,1725946241516,-402.467486,0.00019701,2]
[337679342,1725946241527,-295.458454,0.00019701,2]
[337679343,1725946241537,-1283.208257,0.00019701,2]
[337679344,1725946241547,-402.467486,0.00019701,2]
[337679345,1725946241556,-1283.208257,0.00019701,2]
[337679346,1725946241567,-151.0,0.00019701,2]
[337679347,1725946241577,-151.0,0.00019701,2]
[337679348,1725946241587,-151.0,0.00019701,2]
[337679349,1725946241599,-193.833771,0.00019701,2]
[337679350,1725946241610,-151.0,0.00019701,2]
[337679351,1725946241620,-193.833771,0.00019701,2]
[337679352,1725946241630,-151.0,0.00019701,2]
[337679353,1725946241640,-151.0,0.00019701,2]
[337679354,1725946241651,-480.55486,0.00019701,2]
[337679355,1725946241662,-480.55486,0.00019701,2]
[337679356,1725946241671,-151.0,0.00019701,2]
[337679357,1725946241681,-151.0,0.00019701,2]
[337679358,1725946241691,-151.0,0.00019701,2]
[337679359,1725946241701,-151.0,0.00019701,2]
[337679360,1725946241713,-157.003971,0.00019701,2]
[337679361,1725946241725,-150.112233,0.000198,2]
[337679362,1725946241737,-150.112233,0.000198,2]
[337679363,1725946241747,-150.112233,0.000198,2]
[337679364,1725946241757,-150.112233,0.000198,2]
[337679365,1725946241767,-150.112233,0.000198,2]
[337679366,1725946241776,-500.0,0.00019873,2]
[337679367,1725946241786,-500.0,0.00019873,2]
[337679368,1725946241796,-203.98542417,0.00019873,2]
[337679369,1725946241805,-500.2120478,0.00019873,2]
[337679370,1725946241815,-304.61410126,0.00019873,2]
[337679371,1725946241824,-500.0,0.00019873,2]
[337679372,1725946241834,-502.68634431,0.00019873,2]
[337679373,1725946241843,-500.0,0.00019873,2]
[337679374,1725946241853,-160.05405387,0.00019873,2]
[337679375,1725946241862,-500.0,0.00019873,2]
[337679376,1725946241871,-403.59816247,0.00019873,2]
[337679377,1725946241881,-434.86258447,0.00019873,2]
[337679378,1725946241890,-500.0,0.00019873,2]
[337679379,1725946241899,-500.0,0.00019873,2]
[337679380,1725946241909,-500.0,0.00019873,2]
[337679381,1725946241920,-500.0,0.00019873,2]
[337679382,1725946241929,-502.13939876,0.00019873,2]
[337679383,1725946241939,-506.26058925,0.00019873,2]
[337679384,1725946241949,-151.0,0.00019878,2]
[337679385,1725946241959,-151.0,0.00019878,2]
[337679386,1725946241968,-226.976582,0.00019878,2]
[337679387,1725946241978,-226.976582,0.00019878,2]
[337679388,1725946241988,-226.976582,0.00019878,2]
[337679389,1725946241997,-425.048534,0.00019878,2]
[337679390,1725946242006,-226.976582,0.00019878,2]
[337679391,1725946242017,-425.048534,0.00019878,2]
[337679392,1725946242026,-425.048534,0.00019878,2]
[337679393,1725946242035,-425.048534,0.00019878,2]
[337679394,1725946242044,-506.250236,0.00019878,2]
[337679395,1725946242054,-506.250236,0.00019878,2]
[337679396,1725946242064,-506.250236,0.00019878,2]
[337679397,1725946242073,-506.250236,0.00019878,2]
[337679398,1725946242083,-151.0,0.00019878,2]
[337679399,1725946242092,-175.910052,0.00019878,2]
[337679400,1725946242101,-245.32993,0.00019878,2]
[337679401,1725946242111,-203.180249,0.00019878,2]
[337679402,1725946242120,-203.180249,0.00019878,2]
[337679403,1725946242129,-151.0,0.00019878,2]
[337679404,1725946242138,-944.846674,0.00019878,2]
[337679405,1725946242147,-295.458454,0.00019878,2]
[337679406,1725946242157,-944.846674,0.00019878,2]
[337679407,1725946242166,-402.467486,0.00019878,2]
[337679408,1725946242176,-295.458454,0.00019878,2]
[337679409,1725946242186,-1283.208257,0.00019878,2]
[337679410,1725946242196,-402.467486,0.00019878,2]
[337679411,1725946242205,-1283.208257,0.00019878,2]
[337679412,1725946242215,-151.0,0.00019878,2]
[337679413,1725946242224,-151.0,0.00019878,2]
[337679414,1725946242234,-151.0,0.00019878,2]
[337679415,1725946242244,-193.833771,0.00019878,2]
[337679416,1725946242254,-151.0,0.00019878,2]
[337679417,1725946242265,-193.833771,0.00019878,2]
[337679418,1725946242274,-153.842864,0.00019878,2]
[337679419,1725946242284,-151.0,0.00019878,2]
[337679420,1725946242294,-2000.0,0.00019887,2]
[337679421,1725946242304,-2000.0,0.00019887,2]
[337679422,1725946242314,-151.0,0.00019888,2]
[337679423,1725946242324,-1320.622595,0.00019888,2]
[337679424,1725946242334,-1320.622595,0.00019888,2]
[337679425,1725946242344,-151.0,0.00019888,2]
[337679426,1725946242354,-154.547661,0.00019888,2]
[337679427,1725946242364,-165.331149,0.00019888,2]
[337679428,1725946242373,-158.27546,0.00019888,2]
[337679429,1725946242383,-158.27546,0.00019888,2]
[337679430,1725946242392,-158.27546,0.00019888,2]
[337679431,1725946242402,-158.27546,0.00019888,2]
[337679432,1725946242412,-151.0,0.00019888,2]
[337679433,1725946242422,-151.0,0.00019888,2]
[337679434,1725946242432,-151.0,0.00019888,2]
[337679435,1725946242442,-151.0,0.00019888,2]
[337679436,1725946242453,-151.0,0.00019888,2]
[337679437,1725946242465,-151.0,0.00019888,2]
[337679438,1725946242474,-186.514503,0.00019888,2]
[337679439,1725946242484,-186.514503,0.00019888,2]
[337679440,1725946242495,-186.514503,0.00019888,2]
[337679441,1725946242504,-186.514503,0.00019888,2]
[337679442,1725946242515,-151.0,0.00019888,2]
[337679443,1725946242525,-151.0,0.00019888,2]
[337679444,1725946242537,-151.0,0.00019888,2]
[337679445,1725946242545,-153.823599,0.00019888,2]
[337679446,1725946242554,-151.0,0.00019888,2]
[337679447,1725946242563,-154.206267,0.00019888,2]
[337679448,1725946242574,-151.0,0.0001989,2]
[337679449,1725946242584,-151.0,0.0001989,2]
[337679450,1725946242594,-1320.622595,0.0001989,2]
[337679451,1725946242605,-1320.622595,0.0001989,2]
[337679452,1725946242617,-1320.622595,0.0001989,2]
[337679453,1725946242626,-1320.622595,0.0001989,2]
[337679454,1725946242635,-158.27546,0.0001989,2]
[337679455,1725946242647,-158.27546,0.0001989,2]
[337679456,1725946242657,-158.27546,0.0001989,2]
[337679457,1725946242666,-158.27546,0.0001989,2]
[337679458,1725946242675,-151.0,0.0001989,2]
[337679459,1725946242685,-151.0,0.0001989,2]
[337679460,1725946242695,-153.443005,0.0001989,2]
[337679461,1725946242706,-151.0,0.0001989,2]
[337679462,1725946242718,-151.0,0.0001989,2]
[337679463,1725946242728,-186.514503,0.0001989,2]
[337679464,1725946242739,-186.514503,0.0001989,2]
[337679465,1725946242749,-186.514503,0.0001989,2]
[337679466,1725946242764,-186.514503,0.0001989,2]
[337679467,1725946242775,-151.0,0.0001989,2]
[337679468,1725946242788,-151.0,0.0001989,2]
[337679469,1725946242798,-151.0,0.0001989,2]
[337679470,1725946242807,-151.0,0.0001989,2]
[337679471,1725946242818,-1037332.36516979,0.000199,2]
[337679472,1725946242827,-150.112233,0.000199,2]
[337679473,1725946242837,-150.112233,0.000199,2]
[337679474,1725946242846,-150.112233,0.000199,2]
[337679475,1725946242856,-150.112233,0.000199,2]
[337679476,1725946242866,-150.112233,0.000199,2]
[337679477,1725946242876,-150.112233,0.000199,2]
[337679478,1725946242888,-150.112233,0.000199,2]
[337679479,1725946242899,-150.112233,0.000199,2]
[337679480,1725946242911,-150.112233,0.000199,2]
[337679481,1725946242922,-150.112233,0.000199,2]
[337679482,1725946242932,-151.0,0.000199,2]
[337679483,1725946242942,-1320.622595,0.000199,2]
[337679484,1725946242952,-1320.622595,0.000199,2]
[337679485,1725946242962,-158.27546,0.000199,2]
[337679486,1725946242972,-158.27546,0.000199,2]
[337679487,1725946242981,-151.0,0.000199,2]
[337679488,1725946242990,-162.044293,0.000199,2]
[337679489,1725946243000,-186.514503,0.000199,2]
[337679490,1725946243010,-186.514503,0.000199,2]
[337679491,1725946243020,-151.0,0.000199,2]
[337679492,1725946243032,-214.760092,0.000199,2]
[337679493,1725946243042,-150.112233,0.000199,2]
[337679494,1725946243052,-151.0,0.000199,2]
[337679495,1725946243064,-226.976582,0.000199,2]
[337679496,1725946243074,-226.976582,0.000199,2]
[337679497,1725946243084,-425.048534,0.000199,2]
[337679499,1725946243094,-425.048534,0.000199,2]
[337679501,1725946243104,-506.250236,0.000199,2]
[337679502,1725946243115,-506.250236,0.000199,2]
[337679503,1725946243126,-151.0,0.000199,2]
[337679504,1725946243135,-203.180249,0.000199,2]
[337679505,1725946243146,-203.180249,0.000199,2]
[337679506,1725946243156,-151.0,0.000199,2]
[337679507,1725946243166,-944.846674,0.000199,2]
[337679508,1725946243175,-295.458454,0.000199,2]
[337679509,1725946243186,-944.846674,0.000199,2]
[337679510,1725946243196,-402.467486,0.000199,2]
[337679511,1725946243208,-295.458454,0.000199,2]
[337679512,1725946243218,-1283.208257,0.000199,2]
[337679513,1725946243228,-402.467486,0.000199,2]
[337679514,1725946243239,-1283.208257,0.000199,2]
[337679515,1725946243250,-151.0,0.000199,2]
[337679516,1725946243259,-151.0,0.000199,2]
[337679517,1725946243270,-151.0,0.000199,2]
[337679518,1725946243280,-193.833771,0.000199,2]
[337679519,1725946243290,-151.0,0.000199,2]
[337679520,1725946243301,-193.833771,0.000199,2]
[337679521,1725946243311,-480.55486,0.000199,2]
[337679522,1725946243321,-480.55486,0.000199,2]
[337679523,1725946243331,-151.0,0.000199,2]
[337679524,1725946243342,-151.0,0.000199,2]
[337679525,1725946243352,-155.125528,0.000199,2]
[337679526,1725946243363,-151.0,0.000199,2]
[337679527,1725946243375,-27429.55482176,0.0002,2]
[337679528,1725946243385,-4817.99850617,0.00020297,2]
[337679529,1725946243396,-1477.33980514,0.00020325,2]
[337679530,1725946243406,-20153.15318619,0.00020377,2]
[337679531,1725946243416,-160.0,0.00020408,3]
[337679532,1725946243426,-160.0,0.00020561,4]
[337679533,1725946243436,-5122.93813815,0.00020577,2]
[337679534,1725946243447,-160.0,0.00020715,5]
[337679535,1725946243464,-5182.270233,0.00020805,2]
[337679536,1725946243475,-251.0,0.00020822,2]
[337679537,1725946243484,-160.0,0.00020868,6]
[337679538,1725946243493,-5122.93813815,0.0002095,2]
[337679539,1725946243503,-10175.85715254,0.00021,2]
[337679540,1725946243513,-480.55486,0.00021,2]
[337679541,1725946243663,-480.55486,0.00021,2]
[337679542,1725946243674,-151.0,0.00021,2]
[337679543,1725946243683,-163.213645,0.00021,2]
[337679544,1725946243693,-160.0,0.00021022,7]
[337679545,1725946243703,-1138.32,0.00021036,3]
[337679546,1725946243713,-569.16,0.00021036,3]
[337679547,1725946243723,-1002.60412733,0.00021042,2]
[337679549,1725946243736,-1000.0,0.00021042,2]
[337679551,1725946243745,-1000.0,0.00021042,2]
[337679552,1725946243757,-1477.33980514,0.0002106,2]
[337679553,1725946243767,-153.0,0.00021096,2]
[337679554,1725946243777,-4817.99850617,0.00021099,2]
[337679555,1725946243786,-151.0,0.00021099,2]
[337679556,1725946243795,-4000.0,0.00021153,2]
[337679557,1725946243805,-160.0,0.00021175,8]
[337679558,1725946243814,-4000.0,0.00021207,2]
[337679559,1725946243823,-497.81066595,0.00021239,2]
[337679560,1725946243833,-311.8627149,0.00021242,2]
[337679561,1725946243843,-1000.0,0.00021242,2]
[337679562,1725946243852,-1000.0,0.00021242,2]
[337679563,1725946243861,-501.99078751,0.00021242,2]
[337679564,1725946243870,-1000.0,0.00021242,2]
[337679565,1725946243880,-1001.82517705,0.00021242,2]
[337679566,1725946243892,-1000.0,0.00021242,2]
[337679567,1725946243902,-1000.0,0.00021242,2]
[337679568,1725946243914,-4000.0,0.00021262,2]
[337679569,1725946243923,-10364.540466,0.00021305,2]
[337679570,1725946243933,-4000.0,0.00021317,2]
[337679571,1725946243942,-420.0,0.00021324,2]
[337679572,1725946243952,-160.0,0.00021328,9]
[337679573,1725946243963,-150.56720996,0.00021357,2]
[337679574,1725946243973,-5122.93813815,0.00021369,2]
[337679575,1725946243983,-4000.0,0.00021372,2]
[337679576,1725946243995,-151.0,0.00021372,2]
[337679577,1725946244005,-193.833771,0.00021372,2]
[337679578,1725946244015,-193.833771,0.00021372,2]
[337679579,1725946244024,-152.273392,0.0002139,2]
[337679580,1725946244036,-295.458454,0.0002139,2]
[337679581,1725946244046,-402.467486,0.0002139,2]
[337679582,1725946244056,-295.458454,0.0002139,2]
[337679583,1725946244066,-402.467486,0.0002139,2]
[337679584,1725946244075,-1291.08279457,0.00021427,2]
[337679585,1725946244086,-151.0,0.00021427,2]
[337679586,1725946244096,-226.976582,0.00021427,2]
[337679587,1725946244106,-226.976582,0.00021427,2]
[337679588,1725946244115,-425.048534,0.00021427,2]
[337679589,1725946244124,-425.048534,0.00021427,2]
[337679590,1725946244134,-506.250236,0.00021427,2]
[337679591,1725946244147,-506.250236,0.00021427,2]
[337679592,1725946244158,-151.0,0.00021468,2]
[337679593,1725946244168,-203.180249,0.00021468,2]
[337679594,1725946244178,-203.180249,0.00021468,2]
[337679595,1725946244188,-944.846674,0.00021468,2]
[337679596,1725946244199,-944.846674,0.00021468,2]
[337679597,1725946244210,-1283.208257,0.00021468,2]
[337679598,1725946244220,-1283.208257,0.00021468,2]
[337679599,1725946244230,-151.0,0.00021468,2]
[337679600,1725946244240,-151.0,0.00021468,2]
[337679601,1725946244249,-160.0,0.00021482,10]
[337679602,1725946244259,-298.05372657,0.00021533,2]
[337679604,1725946244940,-121.94627343,0.00021533,2]
[337679605,1725946244951,-5122.93813817,0.00021534,2]
[337679606,1725946244962,-160.0,0.00021635,11]
[337679607,1725946244971,-523.0,0.00021684,2]
[337679608,1725946244980,-186.514503,0.000217,2]
[337679609,1725946244990,-186.514503,0.000217,2]
[337679610,1725946244999,-3000.0,0.000217,2]
[337679611,1725946245009,-151.0,0.000217,2]
[337679612,1725946245018,-2014.55686687,0.0002171,2]
[337679613,1725946245280,-985.44313313,0.0002171,2]
[337679614,1725946245289,-3000.0,0.0002172,2]
[337679615,1725946245299,-3000.0,0.0002173,2]
[337679616,1725946245308,-3000.0,0.0002174,2]
[337679617,1725946245318,-3000.0,0.0002175,2]
[337679618,1725946245327,-480.55486,0.0002175,2]
[337679619,1725946245337,-480.55486,0.0002175,2]
[337679620,1725946245347,-151.0,0.0002175,2]
[337679621,1725946245357,-3000.0,0.0002176,2]
[337679622,1725946245366,-3000.0,0.0002177,2]
[337679623,1725946245376,-151.0,0.0002178,2]
[337679624,1725946245386,-3000.0,0.0002178,2]
[337679625,1725946245394,-151.0,0.00021782,2]
[337679626,1725946245403,-151.0,0.00021782,2]
[337679627,1725946245414,-151.0,0.00021782,2]
[337679628,1725946245424,-158.27546,0.00021782,2]
[337679629,1725946245436,-158.27546,0.00021782,2]
[337679630,1725946245446,-155.798567,0.00021785,2]
[337679631,1725946245459,-151.0,0.00021785,2]
[337679632,1725946245469,-151.0,0.00021785,2]
[337679633,1725946245481,-160.0,0.00021789,12]
[337679634,1725946245494,-3000.0,0.0002179,2]
[337679635,1725946245503,-151.0,0.00021792,2]
[337679636,1725946245513,-151.0,0.00021792,2]
[337679637,1725946245522,-151.0,0.00021792,2]
[337679638,1725946245534,-151.0,0.00021792,2]
[337679639,1725946245544,-1477.33980514,0.00021794,2]
[337679640,1725946245554,-151.0,0.00021795,2]
[337679641,1725946245565,-1320.622595,0.00021795,2]
[337679642,1725946245574,-1320.622595,0.00021795,2]
[337679643,1725946245585,-3000.0,0.000218,2]
[337679644,1725946245596,-151.0,0.000218,2]
[337679645,1725946245605,-3000.0,0.0002181,2]
[337679646,1725946245618,-3000.0,0.00021817,2]
[337679647,1725946245627,-13820.01424132,0.00021817,2]
[337679648,1725946245638,-3000.0,0.0002182,2]
[337679649,1725946245648,-3000.0,0.0002183,2]
[337679650,1725946245659,-3000.0,0.0002184,2]
[337679651,1725946245668,-3000.0,0.0002185,2]
[337679652,1725946245678,-1000.0,0.0002185,2]
[337679653,1725946245688,-3000.0,0.0002186,2]
[337679654,1725946245698,-151.0,0.0002186,2]
[337679655,1725946245708,-226.976582,0.0002186,2]
[337679656,1725946245718,-226.976582,0.0002186,2]
[337679657,1725946245728,-425.048534,0.0002186,2]
[337679658,1725946245739,-425.048534,0.0002186,2]
[337679659,1725946245748,-506.250236,0.0002186,2]
[337679660,1725946245758,-506.250236,0.0002186,2]
[337679661,1725946245767,-295.458454,0.0002186,2]
[337679662,1725946245777,-402.467486,0.0002186,2]
[337679663,1725946245786,-295.458454,0.0002186,2]
[337679664,1725946245795,-402.467486,0.0002186,2]
[337679665,1725946245804,-151.0,0.0002186,2]
[337679666,1725946245814,-193.833771,0.0002186,2]
[337679667,1725946245823,-193.833771,0.0002186,2]
[337679668,1725946245833,-3000.0,0.0002187,2]
[337679669,1725946245842,-306.59883996,0.00021871,2]
[337679670,1725946245852,-1000.0,0.00021872,2]
[337679671,1725946245862,-151.0,0.00021872,2]
[337679672,1725946245872,-203.180249,0.00021872,2]
[337679673,1725946245882,-203.180249,0.00021872,2]
[337679674,1725946246045,-944.846674,0.00021872,2]
[337679675,1725946246060,-944.846674,0.00021872,2]
[337679676,1725946246070,-1283.208257,0.00021872,2]
[337679677,1725946246081,-1283.208257,0.00021872,2]
[337679678,1725946246091,-151.0,0.00021872,2]
[337679679,1725946246101,-203.387504,0.00021872,2]
[337679680,1725946246112,-3000.0,0.0002188,2]
[337679681,1725946246122,-186.514503,0.0002189,2]
[337679682,1725946246134,-186.514503,0.0002189,2]
[337679683,1725946246145,-3000.0,0.0002189,2]
[337679684,1725946246155,-300.0,0.00021893,2]
[337679685,1725946246166,-4817.99850617,0.000219,2]
[337679686,1725946246177,-3000.0,0.000219,2]
[337679687,1725946246189,-150.227256,0.000219,2]
[337679688,1725946246199,-151.0,0.00021907,2]
[337679689,1725946246211,-153.347427,0.00021907,2]
[337679690,1725946246221,-151.0,0.00021907,2]
[337679691,1725946246232,-228.114159,0.00021907,2]
[337679692,1725946246243,-3000.0,0.0002191,2]